[Event "Kupreichik Memorial Rapid 2019"]
[Site "Minsk"]
[Date "2019.08.15"]
[Round "1.28"]
[White "Shaban, Aliaksandra"]
[Black "Kuleshov, Konstantin"]
[Result "1/2-1/2"]
[ECO "D85"]
[WhiteElo "1734"]
[BlackElo "2076"]
[Annotator "NA"]
[PlyCount "47"]
[EventDate "2019.08.15"]
[EventType "swiss"]
[EventCountry "BLR"]
[SourceTitle "playchess.com"]
[Source "ChessBase"]
[SourceQuality "1"]
[TimeControl "900+10"]

1. d4 {[%emt 0:00:00]} Nf6 {[%emt 0:00:00]} 2. c4 {[%emt 0:00:00]} g6 {[%emt 0:00:00]} 3. Nc3 {[%emt 0:00:00]} d5 {[%emt 0:00:00]} 4. cxd5 {[%emt 0:00:00]} Nxd5 {[%emt 0:00:00]} 5. e4 {[%emt 0:00:00]} Nxc3 {[%emt 0:00:00]} 6. bxc3 {[%emt 0:00:06]} Bg7 {[%emt 0:00:00]} 7. Nf3 {[%emt 0:00:06]} c5 {[%emt 0:00:01]} 8. Be3 {[%emt 0:00:27]} Nc6 {[%emt 0:00:03]} 9. Rc1 {[%emt 0:00:16]} cxd4 {[%emt 0:00:13]} 10. cxd4 {[%emt 0:00:15]} Qa5+ {[%emt 0:00:02]} 11. Qd2 {[%emt 0:00:06]} Qxd2+ {[%emt 0:00:04]} 12. Kxd2 {[%emt 0:00:14]} O-O {[%emt 0:00:46]} 13. Bb5 {[%emt 0:01:17]} Rd8 {[%emt 0:00:09]} 14. Bxc6 {[%emt 0:00:47]} bxc6 {[%emt 0:00:01]} 15. Rc5 {[%emt 0:01:35]} Rb8 {[%emt 0:00:26]} 16. Rhc1 {[%emt 0:00:32]} Rb2+ {[%emt 0:00:05]} 17. R1c2 {[%emt 0:00:13]} Rxc2+ {[%emt 0:00:05]} 18. Kxc2 {[%emt 0:00:09]} Be6 {[%emt 0:00:03]} 19. a3 {[%emt 0:00:45]} Bd7 {[%emt 0:00:39]} 20. Ne5 {[%emt 0:00:40]} Be8 {[%emt 0:00:49]} 21. Nxc6 {[%emt 0:00:49]} Bxc6 {[%emt 0:00:02]} 22. Rxc6 {[%emt 0:00:02]} Bxd4 {[%emt 0:00:03]} 23. Bxd4 {[%emt 0:00:44]} Rxd4 {[%emt 0:00:02]} 24. f3 {[%emt 0:00:12]} 1/2-1/2

[Event "Kupreichik Memorial Rapid 2019"]
[Site "Minsk"]
[Date "2019.08.15"]
[Round "1.29"]
[White "Tsaruk, Maksim"]
[Black "Yasiukovich, Sergei"]
[Result "1-0"]
[ECO "B12"]
[WhiteElo "2230"]
[BlackElo "1529"]
[Annotator "NA"]
[PlyCount "73"]
[EventDate "2019.08.15"]
[EventType "swiss"]
[EventCountry "BLR"]
[SourceTitle "playchess.com"]
[Source "ChessBase"]
[SourceQuality "1"]
[TimeControl "900+10"]

1. e4 {[%emt 0:00:00]} c6 {[%emt 0:00:00]} 2. d4 {[%emt 0:00:00]} d5 {[%emt 0:00:00]} 3. Nd2 {[%emt 0:00:00]} h6 {[%emt 0:00:00]} 4. Ngf3 {[%emt 0:00:37]} Bg4 {[%emt 0:00:09]} 5. Be2 {[%emt 0:02:05]} e6 {[%emt 0:00:01]} 6. O-O {[%emt 0:00:23]} Nd7 {[%emt 0:01:05]} 7. h3 {[%emt 0:00:44]} Bh5 {[%emt 0:00:32]} 8. e5 {[%emt 0:02:11]} Ne7 {[%emt 0:01:03]} 9. b3 {[%emt 0:00:37]} Nc8 {[%emt 0:00:10]} 10. c4 {[%emt 0:00:05]} Be7 {[%emt 0:00:27]} 11. Ne1 {[%emt 0:00:39]} Bxe2 {[%emt 0:00:26]} 12. Qxe2 {[%emt 0:00:01]} O-O {[%emt 0:02:26]} 13. Qg4 {[%emt 0:00:07]} Re8 {[%emt 0:03:08]} 14. Ndf3 {[%emt 0:00:32]} Kh7 {[%emt 0:00:26]} 15. Nd3 {[%emt 0:00:39]} dxc4 {[%emt 0:01:23]} 16. bxc4 {[%emt 0:00:09]} Ncb6 {[%emt 0:00:08]} 17. Nd2 {[%emt 0:05:11]} f5 {[%emt 0:01:14]} 18. Qg3 {[%emt 0:01:13]} Nf8 {[%emt 0:01:00]} 19. c5 {[%emt 0:00:17]} Nd5 {[%emt 0:00:53]} 20. Nc4 {[%emt 0:00:02]} Ng6 {[%emt 0:00:22]} 21. Nd6 {[%emt 0:00:39]} Bxd6 {[%emt 0:00:01]} 22. exd6 {[%emt 0:00:25]} Nc3 {[%emt 0:01:44]} 23. Re1 {[%emt 0:00:42]} Ne4 {[%emt 0:00:06]} 24. Qe3 {[%emt 0:00:30]} e5 {[%emt 0:00:35]} 25. Bb2 {[%emt 0:00:07]} exd4 {[%emt 0:00:46]} 26. Qxd4 {[%emt 0:00:02]} Qd7 {[%emt 0:00:35]} 27. Re3 {[%emt 0:01:02]} Re6 {[%emt 0:00:14]} 28. f3 {[%emt 0:00:16]} Ng5 {[%emt 0:00:01]} 29. Rae1 {[%emt 0:00:02]} Rae8 {[%emt 0:00:02]} 30. h4 {[%emt 0:00:19]} Rxe3 {[%emt 0:00:03]} 31. Rxe3 {[%emt 0:00:02]} Ne6 {[%emt 0:00:02]} 32. Qa4 {[%emt 0:00:14]} a6 {[%emt 0:00:08]} 33. h5 {[%emt 0:00:03]} Nxc5 {[%emt 0:00:27]} 34. hxg6+ {[%emt 0:00:05]} Kxg6 {[%emt 0:00:02]} 35. Nxc5 {[%emt 0:00:01]} Qxd6 {[%emt 0:00:05]} 36. Rxe8 {[%emt 0:00:07]} Qxc5+ {[%emt 0:00:01]} 37. Qd4 {[%emt 0:00:02]} 1-0

[Event "Kupreichik Memorial Rapid 2019"]
[Site "Minsk"]
[Date "2019.08.15"]
[Round "1.31"]
[White "Leinov, Roman"]
[Black "Patokova, Viktoriya"]
[Result "1-0"]
[ECO "A08"]
[WhiteElo "2189"]
[BlackElo "1503"]
[Annotator "NA"]
[PlyCount "63"]
[EventDate "2019.08.15"]
[EventType "swiss"]
[EventCountry "BLR"]
[SourceTitle "playchess.com"]
[Source "ChessBase"]
[SourceQuality "1"]
[TimeControl "900+10"]

1. Nf3 {[%emt 0:00:00]} d5 {[%emt 0:00:00]} 2. g3 {[%emt 0:00:00]} c5 {[%emt 0:00:00]} 3. Bg2 {[%emt 0:00:01]} Nc6 {[%emt 0:00:02]} 4. d4 {[%emt 0:00:02]} e6 {[%emt 0:00:05]} 5. O-O {[%emt 0:00:03]} Nf6 {[%emt 0:00:03]} 6. c4 {[%emt 0:00:03]} cxd4 {[%emt 0:00:25]} 7. Nxd4 {[%emt 0:00:03]} Bc5 {[%emt 0:00:18]} 8. Nb3 {[%emt 0:00:12]} Bb6 {[%emt 0:00:12]} 9. cxd5 {[%emt 0:00:15]} Nxd5 {[%emt 0:00:08]} 10. Nc3 {[%emt 0:00:25]} Ncb4 {[%emt 0:00:44]} 11. Nxd5 {[%emt 0:02:48]} Nxd5 {[%emt 0:00:07]} 12. e4 {[%emt 0:00:32]} Nf6 {[%emt 0:00:14]} 13. Qe2 {[%emt 0:04:28]} e5 {[%emt 0:00:54]} 14. Qb5+ {[%emt 0:00:50]} Nd7 {[%emt 0:04:31]} 15. Bd2 {[%emt 0:01:44]} O-O {[%emt 0:00:37]} 16. Bb4 {[%emt 0:00:40]} Re8 {[%emt 0:00:51]} 17. Rad1 {[%emt 0:00:31]} Qf6 {[%emt 0:02:06]} 18. Bh3 {[%emt 0:01:38]} Rd8 {[%emt 0:00:39]} 19. Bxd7 {[%emt 0:00:16]} Bxd7 {[%emt 0:00:54]} 20. Rxd7 {[%emt 0:00:07]} Rxd7 {[%emt 0:00:13]} 21. Qxd7 {[%emt 0:00:03]} Rd8 {[%emt 0:01:20]} 22. Qe7 {[%emt 0:00:04]} Qf3 {[%emt 0:00:59]} 23. Bc5 {[%emt 0:00:30]} Rc8 {[%emt 0:00:42]} 24. Bxb6 {[%emt 0:00:14]} axb6 {[%emt 0:00:02]} 25. Qxb7 {[%emt 0:00:10]} Re8 {[%emt 0:00:14]} 26. Qd7 {[%emt 0:00:25]} Ra8 {[%emt 0:00:11]} 27. Qd5 {[%emt 0:00:27]} Re8 {[%emt 0:00:16]} 28. Nd2 {[%emt 0:00:06]} Qe2 {[%emt 0:00:21]} 29. Nc4 {[%emt 0:00:05]} h6 {[%emt 0:00:15]} 30. Nxe5 {[%emt 0:00:13]} Rf8 {[%emt 0:00:19]} 31. b4 {[%emt 0:00:07]} b5 {[%emt 0:00:07]} 32. Rc1 {[%emt 0:00:49]} 1-0

[Event "Kupreichik Memorial Rapid 2019"]
[Site "Minsk"]
[Date "2019.08.15"]
[Round "1.33"]
[White "Kameko, Aleksandr"]
[Black "Ustiugov, Boris"]
[Result "1-0"]
[ECO "B50"]
[WhiteElo "2045"]
[BlackElo "1567"]
[Annotator "NA"]
[PlyCount "63"]
[EventDate "2019.08.15"]
[EventType "swiss"]
[EventCountry "BLR"]
[SourceTitle "playchess.com"]
[Source "ChessBase"]
[SourceQuality "1"]
[TimeControl "900+10"]

1. e4 {[%emt 0:00:00]} c5 {[%emt 0:00:00]} 2. Nf3 {[%emt 0:00:00]} d6 {[%emt 0:00:00]} 3. c4 {[%emt 0:00:00]} Nc6 {[%emt 0:00:12]} 4. d4 {[%emt 0:00:00]} cxd4 {[%emt 0:00:04]} 5. Nxd4 {[%emt 0:00:01]} Nf6 {[%emt 0:00:08]} 6. Nc3 {[%emt 0:00:02]} g6 {[%emt 0:00:32]} 7. Be2 {[%emt 0:00:02]} Bg7 {[%emt 0:00:01]} 8. Be3 {[%emt 0:00:02]} Bd7 {[%emt 0:00:51]} 9. O-O {[%emt 0:00:03]} O-O {[%emt 0:00:02]} 10. Rc1 {[%emt 0:00:04]} Rc8 {[%emt 0:00:01]} 11. f3 {[%emt 0:00:17]} a6 {[%emt 0:00:25]} 12. Qd2 {[%emt 0:00:03]} Re8 {[%emt 0:00:04]} 13. Rfd1 {[%emt 0:00:07]} Nh5 {[%emt 0:01:33]} 14. Nb3 {[%emt 0:01:06]} b6 {[%emt 0:01:12]} 15. Nd5 {[%emt 0:02:08]} Rb8 {[%emt 0:00:16]} 16. Bh6 {[%emt 0:01:40]} Nf6 {[%emt 0:00:28]} 17. Bxg7 {[%emt 0:00:10]} Kxg7 {[%emt 0:00:02]} 18. Nxf6 {[%emt 0:00:08]} exf6 {[%emt 0:02:53]} 19. Qxd6 {[%emt 0:00:06]} Re7 {[%emt 0:01:25]} 20. Nd4 {[%emt 0:03:24]} Rc8 {[%emt 0:01:26]} 21. Nxc6 {[%emt 0:00:08]} Rxc6 {[%emt 0:00:30]} 22. Qxc6 {[%emt 0:00:04]} Bxc6 {[%emt 0:00:02]} 23. Rxd8 {[%emt 0:00:02]} f5 {[%emt 0:01:21]} 24. Rd6 {[%emt 0:00:11]} Bb7 {[%emt 0:00:58]} 25. Bd3 {[%emt 0:00:04]} b5 {[%emt 0:00:27]} 26. c5 {[%emt 0:00:03]} fxe4 {[%emt 0:00:04]} 27. Bxe4 {[%emt 0:00:01]} Bc8 {[%emt 0:01:21]} 28. Rd8 {[%emt 0:00:10]} Rc7 {[%emt 0:00:04]} 29. c6 {[%emt 0:00:06]} h5 {[%emt 0:00:59]} 30. Rcd1 {[%emt 0:00:11]} Be6 {[%emt 0:00:20]} 31. h4 {[%emt 0:00:38]} Kf6 {[%emt 0:00:11]} 32. R8d7 {[%emt 0:00:34]} 1-0

[Event "Kupreichik Memorial Rapid 2019"]
[Site "Minsk"]
[Date "2019.08.15"]
[Round "1.34"]
[White "Makarau, Yauheni"]
[Black "Vashchilov, Sergey"]
[Result "0-1"]
[ECO "C01"]
[WhiteElo "1459"]
[BlackElo "2162"]
[Annotator "NA"]
[PlyCount "86"]
[EventDate "2019.08.15"]
[EventType "swiss"]
[EventCountry "BLR"]
[SourceTitle "playchess.com"]
[Source "ChessBase"]
[SourceQuality "1"]
[TimeControl "900+10"]

1. e4 {[%emt 0:00:00]} e6 {[%emt 0:00:00]} 2. d4 {[%emt 0:00:00]} d5 {[%emt 0:00:00]} 3. exd5 {[%emt 0:00:00]} exd5 {[%emt 0:00:00]} 4. Bd3 {[%emt 0:00:00]} Bd6 {[%emt 0:00:04]} 5. Nf3 {[%emt 0:00:02]} Ne7 {[%emt 0:00:02]} 6. O-O {[%emt 0:00:08]} Bg4 {[%emt 0:00:02]} 7. Nbd2 {[%emt 0:00:28]} Nbc6 {[%emt 0:00:08]} 8. c3 {[%emt 0:00:22]} Qd7 {[%emt 0:00:35]} 9. Qc2 {[%emt 0:00:48]} h6 {[%emt 0:01:53]} 10. Re1 {[%emt 0:00:47]} O-O {[%emt 0:00:29]} 11. Ne5 {[%emt 0:01:41]} Nxe5 {[%emt 0:00:14]} 12. dxe5 {[%emt 0:00:07]} Bc5 {[%emt 0:00:02]} 13. Nb3 {[%emt 0:00:33]} Bb6 {[%emt 0:00:07]} 14. Be3 {[%emt 0:00:53]} Bf5 {[%emt 0:01:29]} 15. Bxb6 {[%emt 0:00:52]} axb6 {[%emt 0:00:31]} 16. Nd4 {[%emt 0:00:19]} Bxd3 {[%emt 0:01:38]} 17. Qxd3 {[%emt 0:00:01]} Nc6 {[%emt 0:02:34]} 18. e6 {[%emt 0:01:09]} fxe6 {[%emt 0:00:04]} 19. Nxe6 {[%emt 0:00:06]} Rf6 {[%emt 0:00:16]} 20. Nd4 {[%emt 0:02:28]} Raf8 {[%emt 0:02:26]} 21. Nf3 {[%emt 0:01:50]} Kh8 {[%emt 0:01:17]} 22. Re2 {[%emt 0:01:38]} Qg4 {[%emt 0:00:34]} 23. Kf1 {[%emt 0:01:15]} Rg6 {[%emt 0:01:10]} 24. Nh4 {[%emt 0:01:19]} Rg5 {[%emt 0:01:41]} 25. g3 {[%emt 0:00:23]} Qh3+ {[%emt 0:00:17]} 26. Ke1 {[%emt 0:00:57]} Qxh2 {[%emt 0:00:06]} 27. Kd2 {[%emt 0:00:33]} Rxf2 {[%emt 0:00:48]} 28. Nf3 {[%emt 0:00:27]} Rxe2+ {[%emt 0:00:31]} 29. Qxe2 {[%emt 0:00:01]} Qxe2+ {[%emt 0:00:10]} 30. Kxe2 {[%emt 0:00:01]} Rxg3 {[%emt 0:00:15]} 31. Kf2 {[%emt 0:00:17]} Rg4 {[%emt 0:00:19]} 32. Re1 {[%emt 0:00:02]} Re4 {[%emt 0:00:20]} 33. Rxe4 {[%emt 0:00:32]} dxe4 {[%emt 0:00:01]} 34. Nd2 {[%emt 0:00:02]} Ne5 {[%emt 0:00:07]} 35. Ke3 {[%emt 0:00:23]} Nd3 {[%emt 0:00:16]} 36. b4 {[%emt 0:00:09]} Ne5 {[%emt 0:00:14]} 37. Kxe4 {[%emt 0:00:05]} Nd7 {[%emt 0:00:06]} 38. Nf3 {[%emt 0:00:06]} Kg8 {[%emt 0:00:05]} 39. Kf5 {[%emt 0:00:24]} Kf7 {[%emt 0:00:03]} 40. Nh4 {[%emt 0:00:08]} Nf8 {[%emt 0:00:16]} 41. c4 {[%emt 0:00:09]} g6+ {[%emt 0:00:06]} 42. Ke4 {[%emt 0:00:06]} Kf6 {[%emt 0:00:18]} 43. a4 {[%emt 0:00:04]} Nd7 {[%emt 0:00:09]} 0-1

[Event "Kupreichik Memorial Rapid 2019"]
[Site "Minsk"]
[Date "2019.08.15"]
[Round "1.35"]
[White "Lazavik, Denis"]
[Black "Laptev, Viktor"]
[Result "1-0"]
[ECO "D71"]
[WhiteElo "2347"]
[BlackElo "1424"]
[Annotator "NA"]
[PlyCount "83"]
[EventDate "2019.08.15"]
[EventType "swiss"]
[EventCountry "BLR"]
[SourceTitle "playchess.com"]
[Source "ChessBase"]
[SourceQuality "1"]
[TimeControl "900+10"]

1. d4 {[%emt 0:00:00]} Nf6 {[%emt 0:00:00]} 2. c4 {[%emt 0:00:00]} g6 {[%emt 0:00:00]} 3. g3 {[%emt 0:00:00]} Bg7 {[%emt 0:00:21]} 4. Bg2 {[%emt 0:00:03]} O-O {[%emt 0:00:19]} 5. Nc3 {[%emt 0:00:03]} c6 {[%emt 0:00:17]} 6. e4 {[%emt 0:00:07]} d6 {[%emt 0:00:36]} 7. Nge2 {[%emt 0:00:05]} Nbd7 {[%emt 0:00:55]} 8. O-O {[%emt 0:00:06]} e5 {[%emt 0:00:20]} 9. h3 {[%emt 0:00:35]} a6 {[%emt 0:00:57]} 10. Be3 {[%emt 0:01:23]} b5 {[%emt 0:00:20]} 11. c5 {[%emt 0:02:00]} exd4 {[%emt 0:00:22]} 12. Nxd4 {[%emt 0:00:02]} Ne5 {[%emt 0:05:32]} 13. cxd6 {[%emt 0:00:43]} Qxd6 {[%emt 0:01:33]} 14. f4 {[%emt 0:01:29]} Nc4 {[%emt 0:00:03]} 15. Bf2 {[%emt 0:00:30]} Qc7 {[%emt 0:00:11]} 16. e5 {[%emt 0:00:10]} Rd8 {[%emt 0:01:12]} 17. Qc2 {[%emt 0:00:56]} Nd5 {[%emt 0:00:14]} 18. Nxd5 {[%emt 0:00:03]} cxd5 {[%emt 0:00:29]} 19. b3 {[%emt 0:00:03]} Bb7 {[%emt 0:00:01]} 20. bxc4 {[%emt 0:00:21]} dxc4 {[%emt 0:00:03]} 21. Rad1 {[%emt 0:00:20]} Bxg2 {[%emt 0:00:23]} 22. Kxg2 {[%emt 0:00:02]} Qb7+ {[%emt 0:00:23]} 23. Kg1 {[%emt 0:00:08]} Rdc8 {[%emt 0:00:05]} 24. Ne2 {[%emt 0:00:30]} b4 {[%emt 0:00:08]} 25. Rd4 {[%emt 0:00:50]} b3 {[%emt 0:01:03]} 26. Qc3 {[%emt 0:00:56]} b2 {[%emt 0:00:54]} 27. Rb1 {[%emt 0:00:06]} Qb5 {[%emt 0:00:02]} 28. Rxb2 {[%emt 0:00:04]} Qc6 {[%emt 0:00:46]} 29. Rc2 {[%emt 0:00:11]} Qe6 {[%emt 0:00:04]} 30. Kh2 {[%emt 0:00:02]} Rab8 {[%emt 0:00:33]} 31. Rxc4 {[%emt 0:00:08]} Rxc4 {[%emt 0:00:02]} 32. Qxc4 {[%emt 0:00:01]} Qxc4 {[%emt 0:00:10]} 33. Rxc4 {[%emt 0:00:02]} Bf8 {[%emt 0:00:01]} 34. Rc2 {[%emt 0:00:04]} a5 {[%emt 0:00:07]} 35. a4 {[%emt 0:00:06]} Kg7 {[%emt 0:00:07]} 36. Kg2 {[%emt 0:00:03]} Bb4 {[%emt 0:00:01]} 37. Nd4 {[%emt 0:00:04]} h5 {[%emt 0:00:08]} 38. Nc6 {[%emt 0:00:02]} Rb7 {[%emt 0:00:05]} 39. Nxb4 {[%emt 0:00:02]} Rxb4 {[%emt 0:00:04]} 40. Ra2 {[%emt 0:00:01]} f6 {[%emt 0:00:03]} 41. exf6+ {[%emt 0:00:03]} Kxf6 {[%emt 0:00:01]} 42. Be1 {[%emt 0:00:01]} 1-0

[Event "Kupreichik Memorial Rapid 2019"]
[Site "Minsk"]
[Date "2019.08.15"]
[Round "1.36"]
[White "Novik, Nikita"]
[Black "Kalinin, Dmitry"]
[Result "0-1"]
[ECO "E00"]
[WhiteElo "1355"]
[BlackElo "2119"]
[Annotator "NA"]
[PlyCount "118"]
[EventDate "2019.08.15"]
[EventType "swiss"]
[EventCountry "BLR"]
[SourceTitle "playchess.com"]
[Source "ChessBase"]
[SourceQuality "1"]
[TimeControl "900+10"]

1. d4 {[%emt 0:00:00]} Nf6 {[%emt 0:00:00]} 2. c4 {[%emt 0:00:00]} e6 {[%emt 0:00:00]} 3. Nc3 {[%emt 0:00:00]} d5 {[%emt 0:00:01]} 4. e3 {[%emt 0:00:00]} Be7 {[%emt 0:00:15]} 5. Nf3 {[%emt 0:00:05]} O-O {[%emt 0:00:15]} 6. cxd5 {[%emt 0:00:11]} exd5 {[%emt 0:00:01]} 7. Bd3 {[%emt 0:00:04]} b6 {[%emt 0:00:25]} 8. O-O {[%emt 0:00:04]} Bb7 {[%emt 0:00:13]} 9. b3 {[%emt 0:01:00]} Nbd7 {[%emt 0:00:08]} 10. Bb2 {[%emt 0:00:04]} Ne4 {[%emt 0:00:58]} 11. Nd2 {[%emt 0:01:25]} f5 {[%emt 0:00:52]} 12. f3 {[%emt 0:00:42]} Nxc3 {[%emt 0:00:17]} 13. Bxc3 {[%emt 0:00:07]} Bd6 {[%emt 0:02:10]} 14. Qc2 {[%emt 0:01:54]} Qh4 {[%emt 0:00:52]} 15. f4 {[%emt 0:00:12]} Qe7 {[%emt 0:03:02]} 16. Rae1 {[%emt 0:00:20]} g6 {[%emt 0:00:35]} 17. Nf3 {[%emt 0:01:20]} Rac8 {[%emt 0:00:31]} 18. Ne5 {[%emt 0:02:54]} Bxe5 {[%emt 0:01:12]} 19. fxe5 {[%emt 0:00:39]} Rf7 {[%emt 0:00:20]} 20. Rf3 {[%emt 0:01:48]} Nf8 {[%emt 0:02:21]} 21. Ref1 {[%emt 0:01:05]} Ne6 {[%emt 0:00:01]} 22. Rg3 {[%emt 0:02:26]} Kh8 {[%emt 0:00:20]} 23. Qd2 {[%emt 0:01:13]} c5 {[%emt 0:00:28]} 24. Be2 {[%emt 0:00:45]} Qc7 {[%emt 0:00:14]} 25. h4 {[%emt 0:00:22]} cxd4 {[%emt 0:00:19]} 26. Bxd4 {[%emt 0:00:18]} Qc2 {[%emt 0:00:02]} 27. Rd1 {[%emt 0:00:14]} Qxd2 {[%emt 0:00:52]} 28. Rxd2 {[%emt 0:00:01]} Rfc7 {[%emt 0:00:01]} 29. Bd3 {[%emt 0:00:13]} Rc1+ {[%emt 0:01:12]} 30. Kh2 {[%emt 0:00:01]} Bc6 {[%emt 0:00:34]} 31. h5 {[%emt 0:00:08]} Be8 {[%emt 0:00:01]} 32. hxg6 {[%emt 0:00:13]} hxg6 {[%emt 0:00:02]} 33. Rh3+ {[%emt 0:00:13]} Kg7 {[%emt 0:00:01]} 34. Rg3 {[%emt 0:00:02]} Kf7 {[%emt 0:00:18]} 35. Rf2 {[%emt 0:00:14]} Ke7 {[%emt 0:00:08]} 36. Rh3 {[%emt 0:00:09]} Bf7 {[%emt 0:00:12]} 37. Rh7 {[%emt 0:00:12]} Ng5 {[%emt 0:00:07]} 38. Rh4 {[%emt 0:00:16]} Rd1 {[%emt 0:00:19]} 39. Bb5 {[%emt 0:00:19]} Ne6 {[%emt 0:00:07]} 40. Bb2 {[%emt 0:00:08]} Ng5 {[%emt 0:00:30]} 41. Ba3+ {[%emt 0:00:01]} Ke6 {[%emt 0:00:02]} 42. Bb2 {[%emt 0:00:12]} Ne4 {[%emt 0:00:07]} 43. Rxe4 {[%emt 0:00:12]} dxe4 {[%emt 0:00:07]} 44. Bc4+ {[%emt 0:00:03]} Ke7 {[%emt 0:00:12]} 45. Ba3+ {[%emt 0:00:01]} Ke8 {[%emt 0:00:01]} 46. Bb5+ {[%emt 0:00:03]} Kd8 {[%emt 0:00:03]} 47. Ba6 {[%emt 0:00:37]} Rc7 {[%emt 0:00:23]} 48. Rf4 {[%emt 0:00:03]} Rc2 {[%emt 0:00:14]} 49. Bb5 {[%emt 0:00:17]} a6 {[%emt 0:00:17]} 50. Bxa6 {[%emt 0:00:18]} Rxa2 {[%emt 0:00:03]} 51. Rh4 {[%emt 0:00:10]} Rxa3 {[%emt 0:00:05]} 52. Rh8+ {[%emt 0:00:02]} Kd7 {[%emt 0:00:03]} 53. Bc8+ {[%emt 0:00:03]} Ke7 {[%emt 0:00:08]} 54. Rh7 {[%emt 0:00:17]} Rd8 {[%emt 0:00:20]} 55. Bb7 {[%emt 0:00:18]} Rxb3 {[%emt 0:00:13]} 56. Bc6 {[%emt 0:00:06]} Rxe3 {[%emt 0:00:06]} 57. Bb5 {[%emt 0:00:05]} Rc3 {[%emt 0:00:18]} 58. Ba6 {[%emt 0:00:19]} Rc5 {[%emt 0:00:23]} 59. Be2 Rxe5 {[%emt 0:00:04]} 0-1

[Event "Kupreichik Memorial Rapid 2019"]
[Site "Minsk"]
[Date "2019.08.15"]
[Round "1.37"]
[White "Siniauski, Artsiom"]
[Black "Harbuz, Yaraslau"]
[Result "1-0"]
[ECO "C64"]
[WhiteElo "2142"]
[BlackElo "1359"]
[Annotator "NA"]
[PlyCount "38"]
[EventDate "2019.08.15"]
[EventType "swiss"]
[EventCountry "BLR"]
[SourceTitle "playchess.com"]
[Source "ChessBase"]
[SourceQuality "1"]
[TimeControl "900+10"]

1. e4 {[%emt 0:00:00]} e5 {[%emt 0:00:00]} 2. Nf3 {[%emt 0:00:00]} Nc6 {[%emt 0:00:00]} 3. Bb5 {[%emt 0:00:00]} Bc5 {[%emt 0:00:23]} 4. O-O {[%emt 0:00:09]} Nge7 {[%emt 0:00:08]} 5. c3 {[%emt 0:00:13]} a6 {[%emt 0:00:50]} 6. Ba4 {[%emt 0:00:06]} b5 {[%emt 0:03:24]} 7. Bb3 {[%emt 0:00:12]} Ng6 {[%emt 0:03:58]} 8. d4 {[%emt 0:00:24]} exd4 {[%emt 0:00:33]} 9. cxd4 {[%emt 0:00:04]} Ba7 {[%emt 0:00:37]} 10. Bg5 {[%emt 0:00:34]} Nce7 {[%emt 0:01:08]} 11. Nc3 {[%emt 0:00:23]} Bb7 {[%emt 0:01:00]} 12. Rc1 {[%emt 0:00:58]} Rc8 {[%emt 0:00:21]} 13. a4 {[%emt 0:00:49]} b4 {[%emt 0:01:43]} 14. Nd5 {[%emt 0:00:06]} O-O {[%emt 0:01:35]} 15. Ne5 {[%emt 0:01:24]} Bxd5 {[%emt 0:01:22]} 16. Nxg6 {[%emt 0:00:24]} hxg6 {[%emt 0:00:10]} 17. Bxd5 {[%emt 0:00:05]} c6 {[%emt 0:00:14]} 18. Bc4 {[%emt 0:00:19]} a5 {[%emt 0:00:23]} 19. d5 {[%emt 0:00:30]} Re8 {time} 1-0

[Event "Kupreichik Memorial Rapid 2019"]
[Site "Minsk"]
[Date "2019.08.15"]
[Round "1.38"]
[White "Kasperovich, Mikhail"]
[Black "Zhukovskij, Viktor"]
[Result "0-1"]
[ECO "D15"]
[WhiteElo "1324"]
[BlackElo "2028"]
[Annotator "NA"]
[PlyCount "93"]
[EventDate "2019.08.15"]
[EventType "swiss"]
[EventCountry "BLR"]
[SourceTitle "playchess.com"]
[Source "ChessBase"]
[SourceQuality "1"]
[TimeControl "900+10"]

1. d4 {[%emt 0:00:00]} Nf6 {[%emt 0:00:00]} 2. Nf3 {[%emt 0:00:00]} d5 {[%emt 0:00:00]} 3. c4 {[%emt 0:00:00]} c6 {[%emt 0:00:00]} 4. Nc3 {[%emt 0:00:00]} a6 {[%emt 0:00:00]} 5. a4 {[%emt 0:01:12]} e6 {[%emt 0:00:04]} 6. Bg5 {[%emt 0:00:14]} a5 {[%emt 0:00:20]} 7. e3 {[%emt 0:00:18]} Be7 {[%emt 0:00:37]} 8. Bd3 {[%emt 0:00:24]} O-O {[%emt 0:00:22]} 9. O-O {[%emt 0:00:07]} Na6 {[%emt 0:00:45]} 10. Na2 {[%emt 0:03:17]} b6 {[%emt 0:02:53]} 11. Qc2 {[%emt 0:01:23]} h6 {[%emt 0:00:19]} 12. Bh4 {[%emt 0:01:09]} Bb7 {[%emt 0:00:14]} 13. Ne5 {[%emt 0:01:03]} c5 {[%emt 0:01:12]} 14. Rfd1 {[%emt 0:02:39]} Rc8 {[%emt 0:00:45]} 15. Qe2 {[%emt 0:00:14]} cxd4 {[%emt 0:01:20]} 16. cxd5 {[%emt 0:01:00]} Qxd5 {[%emt 0:01:24]} 17. Nf3 {[%emt 0:00:23]} Nc5 {[%emt 0:00:44]} 18. exd4 {[%emt 0:00:30]} Nxd3 {[%emt 0:00:26]} 19. Qxd3 {[%emt 0:00:07]} Rfd8 {[%emt 0:00:36]} 20. Nc3 {[%emt 0:01:21]} Qh5 {[%emt 0:00:22]} 21. Bg3 {[%emt 0:00:39]} Bxf3 {[%emt 0:00:31]} 22. Qxf3 {[%emt 0:00:02]} Qxf3 {[%emt 0:00:10]} 23. gxf3 {[%emt 0:00:01]} Rc4 {[%emt 0:01:01]} 24. Nb5 {[%emt 0:00:47]} Nd5 {[%emt 0:00:16]} 25. Rdc1 {[%emt 0:00:30]} Rdc8 {[%emt 0:00:21]} 26. Rxc4 {[%emt 0:00:17]} Rxc4 {[%emt 0:00:03]} 27. b3 {[%emt 0:00:33]} Rc2 {[%emt 0:01:05]} 28. Rb1 {[%emt 0:00:46]} Bb4 {[%emt 0:00:17]} 29. Bd6 {[%emt 0:00:21]} Bxd6 {[%emt 0:00:10]} 30. Nxd6 {[%emt 0:00:03]} Kf8 {[%emt 0:00:01]} 31. Nc4 {[%emt 0:00:15]} Rc3 {[%emt 0:00:15]} 32. Rd1 {[%emt 0:00:33]} Rxb3 {[%emt 0:00:05]} 33. Kg2 {[%emt 0:00:04]} Rb4 {[%emt 0:00:09]} 34. Rc1 {[%emt 0:00:04]} Rxa4 {[%emt 0:00:08]} 35. Ne3 {[%emt 0:00:12]} Rxd4 {[%emt 0:00:11]} 36. Rc8+ {[%emt 0:00:09]} Ke7 {[%emt 0:00:02]} 37. Nxd5+ {[%emt 0:00:02]} Rxd5 {[%emt 0:00:01]} 38. Rb8 {[%emt 0:00:01]} b5 {[%emt 0:00:05]} 39. Rb7+ {[%emt 0:00:01]} Kf6 {[%emt 0:00:02]} 40. f4 {[%emt 0:00:04]} a4 {[%emt 0:00:03]} 41. Kf3 {[%emt 0:00:01]} a3 {[%emt 0:00:03]} 42. Ke3 {[%emt 0:00:06]} Rd1 {[%emt 0:00:21]} 43. Ra7 {[%emt 0:00:11]} b4 {[%emt 0:00:02]} 44. Ke2 {[%emt 0:00:01]} Rb1 {[%emt 0:00:05]} 45. Kd2 {[%emt 0:00:04]} Rb2+ {[%emt 0:00:14]} 46. Kd3 {[%emt 0:00:02]} a2 {[%emt 0:00:08]} 47. Kd4 0-1